{"text_format":"1","workbook":"xlsx","n_sheets":3,"sheets":["Arkusz1","Arkusz2","Arkusz3"],"not_rendered":{"charts":0,"images":1,"macros":0,"external_links":0,"defined_names":0,"comments":0,"pivot_tables":0},"unopened":[],"bounds":{"document_bytes":16777216,"sheet_cells":100000,"rows_first":2000,"rows_last":500,"rows_between":2000,"halvings":0,"cell_chars":16384,"cell_head_chars":4096},"cells_cut":0,"cells_raw":0,"read":"whole","date_system":"1900"}

{"sheet":"Arkusz1","index":0,"n_rows":49,"n_cols":9,"rows_kept":49,"cut":false,"hidden":false,"merged":[[9,6,9,7],[8,6,8,7],[1,0,2,8],[3,0,3,8],[4,0,4,1],[4,2,4,3],[4,6,4,7],[5,0,5,1],[5,2,5,3],[5,6,5,7],[7,0,7,1],[7,2,7,3],[7,6,7,7],[6,2,6,3],[6,6,6,7],[6,0,6,1],[20,8,21,8],[22,6,23,7],[26,0,26,5],[27,0,27,1],[27,2,27,3],[20,0,21,5],[20,6,21,7],[48,3,49,7],[38,8,39,8],[40,0,40,4],[40,6,40,7],[42,0,43,7],[42,8,43,8],[38,0,39,4],[38,5,39,5],[38,6,39,7],[41,0,41,7],[19,0,19,1],[19,2,19,3],[33,0,33,4],[37,6,37,7],[29,0,29,1],[32,0,32,1],[28,0,28,1],[31,0,31,1],[32,2,32,3],[29,2,29,3],[31,2,31,3],[28,2,28,3],[30,2,30,3],[30,0,30,1],[12,0,12,1],[12,2,12,3],[8,0,8,1],[8,2,8,3],[9,0,9,1],[9,2,9,3],[11,0,11,1],[11,2,11,3],[10,0,10,1],[10,2,10,3],[10,6,10,7],[19,6,19,7],[12,6,12,7],[13,2,13,3],[13,6,13,7],[15,2,15,3],[15,6,15,7],[11,6,11,7],[13,0,13,1],[18,0,18,1],[18,2,18,3],[18,6,18,7],[14,0,14,1],[14,2,14,3],[14,6,14,7],[16,2,16,3],[16,0,16,1],[17,2,17,3],[16,6,16,7],[17,6,17,7],[17,0,17,1],[15,0,15,1]]}
["Tabela nr 1."]
["Kalkulacja kosztów wykonania zamówienia publicznego "]
[]
[]
["Wyszczególnienie",null,"Minimalna liczba pokoi/\nosób/posiłków/usług\n",null,"Maksymalna liczbapokoi/\nosób/posiłków/usług ","Cena jednostkowa brutto \n(pokój/1 osoba/usługa)","Łączna minimalna wartość  brutto zamówienia ",null,"Łączna maksymalna wartość brutto zamówienia  "]
[null,null,1,null,3,4,"5=1*4",null,"7=3*4"]
["Pokój 2 osobowy (1 nocleg  dla 2 osób) - nocleg w dniu 08.12.2020 r.",null,5,null,20,null,{"$f":"ROUND(C7*F7,2)","v":0},null,{"$f":"ROUND(E7*F7,2)","v":0}]
["Pokój jednoosobowy\n(1 nocleg  dla 1 osoby) - nocleg w dniu 08.12.2020 r.",null,5,null,10,null,0,null,0]
["Śniadanie \n(1 śniadanie dla 1 osoby) w dniu 09.12.2020 r.",null,15,null,50,null,0,null,0]
["Pokój 2 osobowy (1 nocleg  dla 2 osób) - nocleg w dniu 09.12.2020 r.",null,30,null,50,null,0,null,0]
["Pokój jednoosobowy\n(1 nocleg  dla 1 osoby) - nocleg w dniu 09.12.2020 r.",null,10,null,20,null,0,null,0]
["Przerwy kawowe \n(cena za 1 przerwę kawową dla 1 osoby - 3 przerw podczas konferencji )",null,210,null,360,null,0,null,0]
["Obiad (cena za 1 obiad dla 1 osoby -   dniu 09.12.2020 r.)",null,70,null,120,null,0,null,0]
["Kolacja (1 kolacja dla jednej osoby)",null,70,null,120,null,0,null,0]
["Śniadanie \n(1 śniadanie dla 1 osoby) w dniu 10.12.2020 r.",null,70,null,120,null,{"$f":"ROUND(C15*F15,2)","v":0},null,0]
["Wynajęcie sali szkoleniowej  (cena za 1 dzień )",null,1,null,1,null,0,null,0]
["Zapewnienie oprawy muzycznej podczas kolacji",null,1,null,1,null,{"$f":"ROUND(C17*F17,2)","v":0},null,0]
["Transport materiałów konferencyjnych",null,1,null,1,null,0,null,0]
["Transport uczestników - stawka za 1 uczestnika (podstawienie autokaru wraz z transportem w dniach: 09.12.2020 r. oraz 10.12.2020 r.)",null,50,null,120,null,{"$f":"ROUND(C19*F19,2)","v":0},null,0]
["Ubezpieczenie (2-dniowe dla 1 osoby)",null,70,null,120,null,0,null,0]
["Łączna wartość brutto wszystkich pozycji z zamówienia ",null,null,null,null,null,{"$f":"SUM(G8:H20)","v":0},null,{"$f":"SUM(I8:I20)","v":0}]
[]
[null,null,null,null,null,null,"Powyższą wartość należy wpisać do formularza ofertowgo w pozycji wartość minimalnego wynagrodzenia"]
[]
[]
["Tabela nr 2."]
["Opcja"]
["Wyszczególnienie",null,"Maksymalna liczba osób/km",null,"Cena jednostkowa brutto (1 osoba/pobyt/)","Łączna wartość brutto"]
[null,null,1,null,2,"3=2*1"]
["Transport w ramach wycieczki terenowej - stawka za 1 uczestnika",null,120,null,null,{"$f":"C30*E30","v":0}]
["Transport w ramach wycieczki terenowej dla max 120 osób - stawka za 1 km ( 1 autokar max. 200 km)",null,400,null,null,{"$f":"C31*E31","v":0}]
["Obiad (cena za 1 obiad dla 1 osoby -   dniu 10.12.2020 r.)",null,120,null,null,{"$f":"C32*E32","v":0}]
["Suchy prowiant (1 paczka z prowiantem dla 1 osoby)",null,120,null,null,{"$f":"C33*E33","v":0}]
["Łączna wartość brutto wszystkich pozycji opcji ",null,null,null,null,{"$f":"SUM(F30:F33)","v":0}]
[]
[]
["Tabela nr 3."]
[null,null,null,null,null,"Liczba sal/przerw kawowych","Cena jednostkowa usługi",null,"Wartość (liczba sal/przerw kawowych x cena jednostkowa usługi)"]
["Łączna maksymalna wartość brutto wszystkich pozycji zamówienia podstawowego z tabeli nr 1",null,null,null,null,"n/d","n/d",null,{"$f":"I21","v":0}]
[]
["Łączna maksymalna wartość brutto wszystkich pozycji opcji z tabeli nr 2",null,null,null,null,"n/d","n/d",null,{"$f":"F34","v":0}]
["Maksymalna wartość zamówienia brutto po zastosowaniu opcji wyjazdu terenowego oraz po zwiększeniu liczby uczestników do 120 (należy wpisać do formularza ofertowgo) ",null,null,null,null,null,null,null,{"$f":"SUM(I39:I41)","v":0}]
["Wartość opcji  (należy wpisać do formularza ofertowgo jako kwotę opcji) ",null,null,null,null,null,null,null,{"$f":"I42-G21","v":0}]
[]
[]
[]
[]
[]
[null,null,null,"Projekt LIFE15 GIE/PL/000758 pn. Masz prawo do skutecznej ochrony przyrody, finansowany ze środków Programu LIFE oraz ze środków Narodowego Funduszu Ochrony Środowiska i Gospodarki Wodnej."]

{"sheet":"Arkusz2","index":1,"n_rows":0,"n_cols":0,"rows_kept":0,"cut":false,"hidden":false,"merged":[]}

{"sheet":"Arkusz3","index":2,"n_rows":0,"n_cols":0,"rows_kept":0,"cut":false,"hidden":false,"merged":[]}